Cogmind - Beta 15 *** ADVENTURER MODE // 2025.10.20 @ 21:08:44 Player: Atrele Result: Destroyed by 3W-3UQ(R) with Subdweller Beam Cannon Performance ------------- Evolutions (0) 0 Regions Visited (2) 400 Robots Destroyed (13) 65 Value Destroyed (315) 315 Prototype IDs (5) 100 Alien Tech Used (0) 0 Bonus (0) 0 TOTAL SCORE: 880 Bonus ------- None Cogmind --------- Core Integrity 0/250 Matter 280/300 Energy 198/200 System Corruption 0% Temperature Cool (9) Movement Rolling (110) Location -10/Subcaves Parts ------- > --- POWER (1) -------- Subdweller Power Source > --- PROPULSION (2) --- Subdweller Monowheel Subdweller Monowheel > --- UTILITY (2) ------ Medium Storage Unit ECM Suite > --- WEAPON (2) ------- Subdweller Machine Gun Subdweller Machine Gun > --- INVENTORY (10) --- Heavy Ion Engine Aluminum Leg Aluminum Leg Hover Unit Small Storage Unit Scrap Shield Scrap Shield Fragment (35) Peak State ------------ > --- POWER ------------ Heavy Ion Engine > --- PROPULSION ------- Wheel Subdweller Monowheel > --- UTILITY ---------- Medium Storage Unit Subdweller Optics > --- WEAPON ----------- Subdweller Laser Subdweller Laser > --- INVENTORY -------- Ion Engine Subdweller Power Source Aluminum Leg Aluminum Leg Wheel Hover Unit Small Storage Unit ECM Suite Assault Rifle [Rating: 14] Favorites ----------- Power Light Ion Engine Engine Light Ion Engine Propulsion Wheel Leg Aluminum Leg Wheel Wheel Utility Medium Storage Unit Device ECM Suite Storage Medium Storage Unit Weapon Medium Laser Energy Gun Medium Laser Ballistic Gun Subdweller Machine Gun Special Melee Weapon Datajack Build | -11 -10 -10 ------- Run | Yrd Mat Sub Slots Evolved . | . . . Power . | . . . Propulsion . | . . . Utility . | . . . Weapon . | . . . Parts Attached 27 | 6 7 14 Power 5 | 1 1 3 Engine 5 | 1 1 3 Core . | . . . Reactor . | . . . Propulsion 9 | 2 1 6 Treads . | . . . Leg 2 | . . 2 Wheel 7 | 2 1 4 Hover . | . . . Flight . | . . . Utility 5 | 1 3 1 Device 2 | . 1 1 Storage 3 | 1 2 . Processor . | . . . Hackware . | . . . Protection . | . . . Artifact . | . . . Weapon 8 | 2 2 4 Energy Gun 5 | 2 1 2 Energy Cannon . | . . . Ballistic Gun 2 | . . 2 Ballistic Cannon . | . . . Launcher . | . . . Special Weapon . | . . . Impact Weapon . | . . . Slashing Weapon . | . . . Piercing Weapon . | . . . Special Melee Weapon 1 | . 1 . Unidentified Prototypes . | . . . Parts Lost 2 | . . 2 Power 1 | . . 1 Propulsion . | . . . Utility . | . . . Weapon 1 | . . 1 Highest Loss Streak 2 | . . 2 To Critical Strikes . | . . . Average Backups 7 | 1 7 7 Power 1 | . 1 1 Propulsion 3 | . 2 3 Utility 1 | . . 2 Weapon 1 | . 1 1 Tool/Special . | . . . Unused Backups 3 | . . 3 Power . | . . . Propulsion 1 | . . 1 Utility 1 | . . 1 Weapon 1 | . . 1 Tool/Special . | . . . Average Slot Usage (%) 99 | . 99 99 Engine 13 | . 14 13 Wheel 27 | . 28 26 Device 11 | . 9 14 Storage 16 | . 18 14 Energy Gun 22 | . 23 21 Ballistic Gun 2 | . . 5 Special Melee Weapon 2 | . 4 1 Peak Build Rating 14 | 6 8 14 Average Rating 9 | 4 7 11 On Entrance 4 | . 6 8 Naked Turns . | . . . Heaviest Build 28 | 11 20 28 Greatest Support 40 | 20 20 40 Greatest Overweight (x) 1 | . . 1 Average Overweight (x) . | . . . Largest Inventory Capacity 10 | 8 10 10 Average Capacity 9 | 7 8 10 Most Carried 10 | 4 9 10 Average Carried 7 | 2 7 8 Final Capacity 10 | 8 10 10 Final Carried 8 | 4 8 8 Class Distribution -------------------- 68% | Mutant 31% | Scavenger-Mutant Dominant Class ---------------- Mutant | -10/Materials Scavenger-Mutant | -10/Subcaves Resources | -11 -10 -10 ----------- Run | Yrd Mat Sub Matter Collected 500 | 170 30 300 Remotely . | . . . Salvage Created 396 | . 97 299 Parts 25 | . 6 19 Haulers Intercepted . | . . . Recyclers Shooed . | . . . Parts Field Recycled . | . . . Retrieved Matter . | . . . Parts Self-Destructed 5 | . . 5 Prevented . | . . . Kills | -11 -10 -10 ------- Run | Yrd Mat Sub Combat Hostiles Destroyed 13 | . 6 7 Guns 13 | . 6 7 Classes Destroyed 3 | . 1 2 Swarmer 7 | . 6 1 Sentry 1 | . . 1 Subdweller 5 | . . 5 Best Kill Streak 3 | . 3 2 Combat Bots Only 3 | . 3 2 Max Kills in Single Turn 1 | . 1 1 Gunslinging . | . . . Exploded . | . . . Melee . | . . . Uniques/NPCs Destroyed . | . . . Combat | -11 -10 -10 -------- Run | Yrd Mat Sub Hostile Shots Fired 70 | . 21 49 Missed 20 | . 7 13 Hits 50 | . 14 36 Projectile 50 | . 14 36 Damage Taken 657 | . 85 572 Core 258 | . 33 225 Absorbed by Shields . | . . . Ignored by Resistances 188 | . 28 160 Core Remaining (%) 100 | 100 . . Volleys Fired 40 | . 10 30 Largest 2 | . 2 2 Hottest 120 | . 90 120 Shots Fired 77 | . 20 57 Gun 77 | . 20 57 Cannon . | . . . Launcher . | . . . Special . | . . . Kinetic . | . . . Thermal 77 | . 20 57 Explosive . | . . . Electromagnetic . | . . . Robot Hit Streak 24 | . 7 24 Robot Miss Streak 1 | . 1 1 Penetration Max . | . . . Secondary Targets . | . . . Shots Hit Robots 75 | . 24 51 Core Hits 19 | . 6 13 Critical Kills 1 | . . 1 Critical Parts Destroyed . | . . . Critical Strikes 2 | . 1 1 Burn 1 | . 1 . Destroy 1 | . . 1 Melee Attacks 10 | . 10 . Impact . | . . . Slashing . | . . . Piercing . | . . . Sneak Attacks 10 | . 10 . Combat Hostiles . | . . . Follow-up Attacks . | . . . Damage Inflicted 911 | . 165 746 Guns 911 | . 165 746 Cannons . | . . . Explosions . | . . . Melee . | . . . Ramming . | . . . Kinetic . | . . . Thermal 911 | . 165 746 Explosive . | . . . Electromagnetic . | . . . Impact . | . . . Slashing . | . . . Piercing . | . . . Highest Corruption . | . . . Average Corruption . | . . . Corruption Purged . | . . . Corruption Blocked . | . . . Overload Shots . | . . . Overflow Damage . | . . . Projectiles . | . . . Explosions . | . . . Melee . | . . . Knockbacks . | . . . Impact . | . . . Kinetic . | . . . Secondary . | . . . Self-Inflicted Damage . | . . . Shots . | . . . Rammed . | . . . Targets Rammed . | . . . Kicked . | . . . Crushed . | . . . Highest Temperature 100 | . 100 68 Average Temperature 40 | . 51 25 Received Heat Transfer 87 | . . 87 Siege Activations . | . . . Martial Activations . | . . . Shielding Activations . | . . . Robots Disrupted . | . . . Combat Hostiles . | . . . Robots Corrupted . | . . . Combat Hostiles . | . . . Parts Fried . | . . . Impact Corruptions . | . . . Robots Melted . | . . . Combat Hostiles . | . . . Parts Melted 6 | . 1 5 Heat Transferred 1715 | . 520 1195 Parts Sabotaged . | . . . Parts Stolen . | . . . Parts Stripped . | . . . Power Chain Reactions . | . . . Alert | -11 -10 -10 ------- Run | Yrd Mat Sub Maximum Alert Level . | . . . Low Security (%) 100 | 100 100 . Level 1 . | . . . Level 2 . | . . . Level 3 . | . . . Level 4 . | . . . Level 5 . | . . . High Security . | . . . Max Security . | . . . Peak Influence 112 | . 112 . Initial . | . . . Average 22 | . 24 . Influence Increases 202 | . 162 40 Destroy 0b10 Robot/C 160 | . 120 40 Destroy Leader 20 | . 20 . Successful Hack 22 | . 22 . Influence Decreases 202 | . 162 40 Time Decay 202 | . 162 40 Squads Dispatched . | . . . Investigation . | . . . Extermination . | . . . Reinforcement . | . . . Assault . | . . . Garrison . | . . . Intercept . | . . . Searches Triggered . | . . . Construction Impeded . | . . . Haulers Reinforced . | . . . Active Scanning Responses . | . . . Cargo Convoy Interrupts . | . . . Stealth | -11 -10 -10 --------- Run | Yrd Mat Sub Distress Signals . | . . . Communications Jammed . | . . . Distress Signals . | . . . Times Spotted 35 | . 23 12 Peak Tracking Total 6 | . 6 2 Tactical Retreats 5 | . 3 2 Traps | -11 -10 -10 ------- Run | Yrd Mat Sub Traps Triggered . | . . . Indirectly . | . . . Trap Hack Attempts . | . . . Triggered . | . . . Disarmed . | . . . Reprogrammed . | . . . Reused . | . . . Traps Extracted . | . . . Installed . | . . . Triggered . | . . . Machines | -11 -10 -10 ---------- Run | Yrd Mat Sub Machines Disabled . | . . . Max in Single Turn . | . . . Machines Repaired . | . . . Machines Dismantled . | . . . Machines Sabotaged . | . . . Overloaded Fab Kills . | . . . Hacking | -11 -10 -10 --------- Run | Yrd Mat Sub Machines Accessed 8 | . 6 2 Terminals 6 | . 6 . Fabricators . | . . . Repair Stations . | . . . Recycling Units . | . . . Scanalyzers . | . . . Garrison Access . | . . . Total Hacks 20 | . 17 3 Successful 12 | . 9 3 Failed 8 | . 8 . Catastrophic 1 | . 1 . Database Lockouts . | . . . Manual 13 | . 13 . Terminals 17 | . 17 . Fabricators . | . . . Repair Stations . | . . . Recycling Units . | . . . Scanalyzers . | . . . Garrison Access . | . . . Terminal Hacks 12 | . 9 3 Record 1 | . . 1 Prototype ID Bank 4 | . 4 . Open Door 1 | . . 1 Level Access Points 1 | . 1 . Branch Access Points 1 | . 1 . Alert Level 1 | . 1 . Transport Status 1 | . 1 . Zone Layout 1 | . 1 . Release Object 1 | . . 1 Fabricator Hacks . | . . . Repair Station Hacks . | . . . Recycling Unit Hacks . | . . . Scanalyzer . | . . . Garrison Access Hacks . | . . . Unauthorized Hacks . | . . . Terminals . | . . . Fabricators . | . . . Repair Stations . | . . . Recycling Units . | . . . Scanalyzers . | . . . Garrison Access . | . . . Data Cores Recovered . | . . . Used . | . . . Hacking Detections 6 | . 6 . Full Trace Events . | . . . Feedback Events . | . . . Feedback Blocked . | . . . Robot Schematics Acquired . | . . . Robots Built . | . . . Authchips . | . . . Time . | . . . Total Robot Build Rating . | . . . Part Schematics Acquired . | . . . Parts Built . | . . . Authchips . | . . . Time . | . . . Total Part Build Rating . | . . . Parts Repaired . | . . . Time . | . . . Parts Recycled . | . . . Recycled Matter . | . . . Retrieved Matter . | . . . Retrieved Components . | . . . Parts Scanalyzed . | . . . Part Schematics Acquired . | . . . Parts Damaged . | . . . Bothacking | -11 -10 -10 ------------ Run | Yrd Mat Sub Used RIF Installer . | . . . Robots Hacked 4 | . 4 . Non-combat 4 | . 4 . Combat . | . . . Robot Hacks Applied 7 | . 7 . parse_system 2 | . 2 . no_distress 4 | . 4 . find_recycling 1 | . 1 . Relay Couplers Released . | . . . Fabnet Peak Effective % . | . . . Robots Rewired . | . . . Allies Hacked . | . . . Hacks Repelled . | . . . Allies | -11 -10 -10 -------- Run | Yrd Mat Sub Total Allies . | . . . Largest Group . | . . . Highest-Rated Group . | . . . Highest-Rated Ally . | . . . Total Orders . | . . . Ally Attacks . | . . . Total Damage . | . . . Kills . | . . . Allies Corrupted . | . . . Allies Melted . | . . . Intel | -11 -10 -10 ------- Run | Yrd Mat Sub Active Infowar (turns) 1237 | . 484 753 Optics 443 | . . 443 ECM 794 | . 484 310 Robot Analysis Total . | . . . Derelict Logs Recovered . | . . . Drone Launches . | . . . Drone Recoveries . | . . . Exploration | -11 -10 -10 ------------- Run | Yrd Mat Sub Turns Passed 1518 | 41 724 753 Spaces Moved 1419 | 36 767 616 Core 1 | 1 . . Treads . | . . . Legs 11 | . . 11 Wheels 1407 | 35 767 605 Hover . | . . . Flight . | . . . Fastest Speed 50 | 50 80 80 Average Speed 88 | 79 80 98 Slowest Speed 190 | 80 80 190 Overloaded Moves . | . . . Propulsion Burnouts . | . . . Robots Hopped . | . . . Potential Cave-ins . | . . . Cave-ins Triggered . | . . . Exploration Rate (%) 46 | 3 90 45 Regions Visited 2 Branch Regions 1 Pre-discovered Areas . | . . . Known Exits Taken . | . . . Unknown Exits Taken 2 | 1 1 . Scrap Searched 4 | . . 4 Spaces Dug . | . . . Terrain Destroyed . | . . . Melee . | . . . Projectile . | . . . AOE . | . . . Terrain Rammed . | . . . Walls Destroyed . | . . . Machines Disabled . | . . . Actions | -11 -10 -10 --------- Run | Yrd Mat Sub Total 1600 | 45 849 706 Wait 52 | . 45 7 Move 1417 | 35 766 616 Hop . | . . . Pick Up 28 | 4 7 17 Fast Attach 7 | 6 1 . Attach 4 | . . 4 Detach 1 | . . 1 Swap 22 | . 7 15 Drop 19 | . 3 16 Fire 40 | . 10 30 Melee 10 | . 10 . Ram . | . . . Kick . | . . . Crush . | . . . Escape Stasis . | . . . Rewire . | . . . Trap . | . . . Miscellaneous . | . . . Route ------- -11/Scrapyard -10/Materials (discovered 5 exits: *Mat x3 / *Min / *Sub) -10/Subcaves (discovered 1 exit: [*Mat]) History --------- Turn | Location | Event 22 | -11/Scrapyard | Discovered new exit (range 15) 42 | -11/Scrapyard | Entered Materials 133 | -10/Materials | Identified exit to Materials 133 | -10/Materials | Identified exit to Mines 304 | -10/Materials | Build established: Mutant 601 | -10/Materials | Discovered new exit (range 8) 766 | -10/Materials | Entered Subcaves 767 | -10/Subcaves | Approached by a straggling Scientist 1168 | -10/Subcaves | Disturbed a concealed Subdweller 1175 | -10/Subcaves | Core integrity fell below 50% 1235 | -10/Subcaves | Discovered new exit (range 10) 1334 | -10/Subcaves | Disturbed a concealed Subdweller 1345 | -10/Subcaves | Core integrity fell below 20% 1447 | -10/Subcaves | Build established: Scavenger-Mutant 1519 | -10/Subcaves | Destroyed by 3W-3UQ(R) with Subdweller Beam Cannon Last Messages --------------- 01285_ Dropped Broken Sub. Power Source. 01314_ Subatomizers dissect the Broken Sub. Power Source. 01333_ Sub. Optics shoots sparks and powers down. 01333_ Dropped Broken Sub. Optics. 01334_ 16-VQ5(R) angrily emerges from the Twisted Machinery. 01335_ 16-VQ5(R): "GOTOSCRAP!" 01354_ Disposable Heat Sink melted. 01354_ 16-VQ5(R) destroyed. 01359_ Acquired 30 matter. 01361_ Acquired Sub. Machine Gun. 01363_ Dropped Sub. Laser. 01366_ Acquired Sub. Monowheel. 01369_ Dropped Wheel. 01373_ Acquired Scrap Shield Fragment. 01377_ Subatomizers dissect the Broken Sub. Optics. 01499_ 11-UR0(u) tweaks Twisted Machinery. Map ----- +----------------------------------------------------+ | ?????????????# #####????????????????? | | ??###???????## ############ ##?########??????? | | ### ######?## ## ### ### "### ?? | | ## ## ## ## "" "" ??? | | ### ## ## """"???? | | ## ### ## #### ### "" "?? | | ###?### ## ##?# ##?????????? | | ##????## ## ### ##?????????? | | # ## ##????# ## ## ##????????? | | # #????## ###" ##" " #????????? | | # #?###?###?#"" ##""" "##????????? | | * #### ### #????###### " #####?????????? | | #??# ## ##???????#"""##?????????????? | | ###??# ## #???????#"""##?????????????? | | # ##????## ## ##?????##""""" #???????????? | | # #####?# #?# #?##?##"""""" #???????????? | | # # ## #???# ## #?# """"""#????????????? | | ## ##??# ##?#""""""#????????????? | | ?### ##?# #??# """#????????????? | | ???# ### ### ""#?## """####??????????? | | ???## ##?# ## ""### ""##""#??????????? | | ?????##??## "### ##"""#??????????? | | ??????????# "## ##""""??????????? | | ??????????# "" u## """""#????????? | | ??????????# ### "" """ "#???????? | | ??????????# ##?#@"" "" #??????? | | ???????# ## #?## "" ### "" ?????? | | ??????# ## ## ###??"" #???? | | ??????##### # #????" ####### #????? | | ??????????# ## #????##?????????????? | | ??????????## #### ### ##???????????????????? | | ??????????? ??# ##?# ##????????????????????? | | ??????????# #??###??# #?????????????????????? | | ??????????## ???????? ?????????????????????? | | ???????????# ??????? ????????????????????? | | ??????????? ?????? ## ?????????????????????? | | ??????????? ?????## ?####????????????????????? | | ????????????????????# ?????????????????????????? | | ???????????????????? RR ?????????????????????????? | | ???????????????????# "" ?????????????????????????? | | ??????????????????? ? #?????????????????????????? | | ??????????????????????#??????????????????????????? | | ?????????????????????????????????????????????????? | | ?????????????????????????????????????????????????? | | ?????????????????????????????????????????????????? | | ?????????????????????????????????????????????????? | | ?????????????????????????????????????????????????? | | ?????????????????????????????????????????????????? | | ?????????????????????????????????????????????????? | | ?????????????????????????????????????????????????? | +----------------------------------------------------+ Best States ------------- Heat Dissipation 25 Energy Generation 15 Energy Capacity 280 Matter Stores 300 Matter Capacity 450 Sight Range 21 Terrain Scan Density 10 ECM Strength 1 Resistance: KI 20 Resistance: TH 20 Resistance: EX 20 Resistance: EM 20 Resistance: I 20 Resistance: S 20 Resistance: P 20 Evasion (%) 44 Offensive Hacking 10 Item Schematics ----------------- None Robot Schematics ------------------ None Fabricated ------------ Nothing Repaired ---------- Nothing Alien Tech Used ----------------- None Achievements -------------- None Challenges ------------ None Game ------ Seed ResetStorageTendrils Manual? 0 Play Time 00:25:34 Cumulative 24.7 hours Start 2025.10.20 @ 20:36:02 End 2025.10.20 @ 21:08:44 Sessions 3 Manual Loads 0 Difficulty Adventurer Special Mode None Game No. 28 Rogue 0 Adventurer 28 Explorer 0 Win Type - Total 0 Types 0/0/0/0/0/0/0/0/0/0 Lore% 18 Gallery% 18 Achievement% 21 Wizard Run 0 Options --------- Layout 1 ASCII 0 Keyboard 0 Movement Numpad Keybinds 0 Fullscreen 1 Font 32/SmallcapsGlow Map View 50x35 Zoom Use 0% Tactical HUD 1 Map Filters NONE Filters NONE Steam 1 RUN: 0b267da2-0749-4912-99a7-68671a7fca09